lending/lending_fUSD_20260101
["ID","MTS","AMOUNT","RATE_DAILY","PERIOD"]
[400267993,1767245432415,-1258.0,0.00015031,2]
[400267994,1767245432427,-151.0,0.00015031,2]
[400267995,1767245432437,-151.0,0.00015031,2]
[400267996,1767245432447,-1258.0,0.00015031,2]
[400267997,1767245432458,-151.0,0.00015031,2]
[400267998,1767245432471,-1258.0,0.00015031,2]
[400267999,1767245432481,-151.0,0.00015031,2]
[400268000,1767245432491,-1258.0,0.00015031,2]
[400268001,1767245432502,-151.0,0.00015031,2]
[400268002,1767245432512,-1258.0,0.00015031,2]
[400268003,1767245432521,-151.0,0.00015031,2]
[400268004,1767245432532,-1258.0,0.00015031,2]
[400268005,1767245432544,-151.0,0.00015031,2]
[400268006,1767245432554,-1258.0,0.00015031,2]
[400268007,1767245432564,-151.0,0.00015031,2]
[400268008,1767245432574,-1258.0,0.00015031,2]
[400268009,1767245432584,-151.0,0.00015031,2]
[400268010,1767245432870,-1258.0,0.00015031,2]
[400268011,1767245432880,-151.0,0.00015031,2]
[400268012,1767245432890,-1258.0,0.00015031,2]
[400268013,1767245432901,-151.0,0.00015031,2]
[400268014,1767245432911,-1258.0,0.00015031,2]
[400268015,1767245432920,-151.0,0.00015031,2]
[400268016,1767245432931,-1258.0,0.00015031,2]
[400268017,1767245432940,-151.0,0.00015031,2]
[400268018,1767245432950,-1258.0,0.00015031,2]
[400268019,1767245432960,-151.0,0.00015031,2]
[400268020,1767245432969,-1258.0,0.00015031,2]
[400268021,1767245432979,-151.0,0.00015031,2]
[400268022,1767245432989,-1258.0,0.00015031,2]
[400268023,1767245432999,-151.0,0.00015031,2]
[400268024,1767245433009,-1258.0,0.00015031,2]
[400268025,1767245433019,-151.0,0.00015031,2]
[400268026,1767245433028,-1258.0,0.00015031,2]
[400268027,1767245433038,-151.0,0.00015031,2]
[400268028,1767245433052,-1258.0,0.00015031,2]
[400268030,1767245433062,-151.0,0.00015031,2]
[400268032,1767245433072,-1258.0,0.00015031,2]
[400268034,1767245433083,-151.0,0.00015031,2]
[400268037,1767245433093,-1258.0,0.00015031,2]
[400268039,1767245433103,-151.0,0.00015031,2]
[400268041,1767245433112,-1258.0,0.00015031,2]
[400268043,1767245433122,-151.0,0.00015031,2]
[400268045,1767245433132,-1258.0,0.00015031,2]
[400268047,1767245433142,-151.0,0.00015031,2]
[400268049,1767245433152,-1258.0,0.00015031,2]
[400268051,1767245433162,-151.0,0.00015031,2]
[400268053,1767245433171,-1258.0,0.00015031,2]
[400268055,1767245433180,-245.97854717,0.00015031,2]
[400268057,1767245433189,-1258.0,0.00015031,2]
[400268059,1767245433200,-1258.0,0.00015031,2]
[400268060,1767245433209,-1258.0,0.00015031,2]
[400268061,1767245433219,-151.0,0.00015031,2]
[400268062,1767245433228,-1258.0,0.00015031,2]
[400268063,1767245433238,-151.0,0.00015031,2]
[400268065,1767245433248,-1258.0,0.00015031,2]
[400268067,1767245433258,-151.0,0.00015031,2]
[400268068,1767245433267,-1258.0,0.00015031,2]
[400268069,1767245433277,-151.0,0.00015031,2]
[400268070,1767245433287,-1230.75227175,0.00015031,2]
[400268071,1767245433297,-151.0,0.00015031,2]
[400268072,1767245433306,-151.0,0.00015031,2]
[400268073,1767245433315,-151.0,0.00015031,2]
[400268074,1767245433325,-151.0,0.00015031,2]
[400268075,1767245433335,-151.0,0.00015031,2]
[400268076,1767245433345,-151.0,0.00015031,2]
[400268077,1767245433355,-151.0,0.00015031,2]
[400268078,1767245433365,-151.0,0.00015031,2]
[400268079,1767245433374,-151.0,0.00015031,2]
[400268080,1767245433383,-151.0,0.00015031,2]
[400268081,1767245433393,-151.0,0.00015031,2]
[400268082,1767245433407,-151.0,0.00015031,2]
[400268084,1767245433417,-151.0,0.00015031,2]
[400268086,1767245433427,-151.0,0.00015031,2]
[400268088,1767245433437,-151.0,0.00015031,2]
[400268090,1767245433446,-151.0,0.00015031,2]
[400268091,1767245433458,-151.0,0.00015031,2]
[400268092,1767245433469,-151.0,0.00015031,2]
[400268093,1767245433479,-151.0,0.00015031,2]
[400268094,1767245433489,-151.0,0.00015031,2]
[400268095,1767245433499,-151.0,0.00015031,2]
[400268096,1767245433509,-151.0,0.00015031,2]
[400268097,1767245433519,-151.0,0.00015031,2]
[400268098,1767245433528,-151.0,0.00015031,2]
[400268099,1767245433539,-151.0,0.00015031,2]
[400268100,1767245433550,-151.0,0.00015031,2]
[400268101,1767245433559,-151.0,0.00015031,2]
[400268102,1767245433569,-151.0,0.00015031,2]
[400268103,1767245433579,-151.0,0.00015031,2]
[400268104,1767245433589,-151.0,0.00015031,2]
[400268105,1767245433599,-151.0,0.00015031,2]
[400268106,1767245433609,-151.0,0.00015031,2]
[400268107,1767245433619,-151.0,0.00015031,2]
[400268108,1767245433628,-151.0,0.00015031,2]
[400268109,1767245433638,-254.59454482,0.00015031,2]
[400268110,1767245433647,-151.0,0.00015031,2]
[400268111,1767245433657,-151.0,0.00015031,2]
[400268112,1767245433667,-151.0,0.00015031,2]
[400268113,1767245433677,-195.0,0.00015068,2]
[400268114,1767245433687,-600.0,0.00015068,2]
[400268115,1767245433696,-354.35076502,0.00015068,2]
[400268116,1767245433706,-355.32706604,0.00015068,2]
[400268117,1767245433715,-195.0,0.00015068,2]
[400268118,1767245433725,-250.0,0.00015068,2]
[400268119,1767245433735,-600.0,0.00015068,2]
[400268120,1767245433745,-300.0,0.00015068,2]
[400268121,1767245433754,-195.0,0.00015068,2]
[400268122,1767245433767,-250.0,0.00015068,2]
[400268123,1767245433777,-440.62817376,0.00015068,2]
[400268124,1767245433787,-300.0,0.00015068,2]
[400268125,1767245433796,-268.16,0.00015303,2]
[400268126,1767245433805,-248.44533985,0.00015353,2]
[400268127,1767245433821,-1251.55466015,0.00015353,2]
[400268128,1767245433831,-150.0,0.00015383,2]
[400268129,1767245433840,-1235.62,0.00015434,2]
[400268130,1767245433850,-151.0,0.00015535,2]
[400268131,1767245433859,-151.0,0.00015535,2]
[400268132,1767245433868,-151.0,0.00015543,2]
[400268133,1767245433878,-151.0,0.00015543,2]
[400268134,1767245433887,-1691.61214627,0.00015582,2]
[400268135,1767245433897,-668.3132812,0.00015582,2]
[400268136,1767245433907,-744.90715104,0.00015582,2]
[400268137,1767245433916,-191.52,0.00015709,2]
[400268138,1767245433926,-150.0,0.00015805,2]
[400268139,1767245433936,-166.5,0.00015884,2]
[400268140,1767245433946,-500.0,0.00016,2]
[400268141,1767245433959,-500.0,0.00016,2]
[400268142,1767245433968,-500.0,0.00016,2]
[400268143,1767245433978,-455.7,0.00016,2]
[400268144,1767245433987,-3683.18,0.00016014,2]
[400268145,1767245433997,-151.0,0.00016121,2]
[400268146,1767245434007,-302.41914922,0.00016123,2]
[400268147,1767245434016,-206.83413281,0.00016123,2]
[400268148,1767245434025,-252.48241796,0.00016123,2]
[400268149,1767245434036,-1265.0,0.00016124,2]
[400268150,1767245434045,-1199.0,0.00016124,2]
[400268151,1767245434055,-913.0,0.00016124,2]
[400268152,1767245434065,-6543.0,0.00016124,2]
[400268153,1767245434074,-2433.0,0.00016124,2]
[400268154,1767245434084,-166.87,0.00016158,2]
[400268155,1767245434094,-1104.12,0.00016368,2]
[400268156,1767245434103,-150.0,0.00016465,2]
[400268157,1767245434113,-150.0,0.00016465,2]
[400268158,1767245434122,-150.0,0.00016465,2]
[400268159,1767245434132,-204.13,0.00016465,2]
[400268160,1767245434142,-151.07,0.000165,2]
[400268161,1767245434152,-150.0,0.000165,2]
[400268162,1767245434161,-173.33,0.00016542,2]
[400268163,1767245434170,-171.03,0.00016542,2]
[400268164,1767245434180,-171.03,0.00016542,2]
[400268165,1767245434190,-171.03,0.00016542,2]
[400268166,1767245434199,-951.65,0.00016542,2]
[400268167,1767245434209,-178.74,0.00016542,2]
[400268168,1767245434219,-178.74,0.00016542,2]
[400268169,1767245434228,-178.74,0.00016542,2]
[400268170,1767245434238,-171.03,0.00016553,2]
[400268171,1767245434247,-171.03,0.00016553,2]
[400268172,1767245434257,-171.03,0.00016553,2]
[400268173,1767245434267,-171.03,0.00016553,2]
[400268174,1767245434276,-171.03,0.00016553,2]
[400268175,1767245434286,-171.03,0.00016553,2]
[400268176,1767245434295,-171.03,0.00016553,2]
[400268177,1767245434306,-171.03,0.00016553,2]
[400268178,1767245434316,-338.42,0.00016553,2]
[400268179,1767245434326,-171.03,0.000166,2]
[400268180,1767245434335,-195.27890787,0.0001666,2]
[400268181,1767245434345,-1055.7,0.00016712,2]
[400268182,1767245434355,-1089.438,0.0001676,2]
[400268183,1767245434364,-645.5136,0.000168,2]
[400268184,1767245434374,-204.76632703,0.000168,2]
[400268185,1767245434383,-254.8868,0.000168,2]
[400268186,1767245434395,-2500.0,0.000168,2]
[400268187,1767245434405,-1746.38493252,0.000168,2]
[400268188,1767245434416,-1746.38493248,0.00016811,2]
[400268189,1767245434426,-1746.38493248,0.00016822,2]
[400268190,1767245434435,-626.24431229,0.00016833,2]
[400268191,1767245434477,-154.0,0.00014785,2]
[400268192,1767245434486,-137.65158265,0.00016833,2]
[400268199,1767245437938,-565.0,0.00016124,2]
[400268200,1767245437948,-982.48903754,0.00016833,2]
[400268201,1767245437958,-1746.38493248,0.00016844,2]
[400268202,1767245437968,-1746.38493248,0.00016856,2]
[400268203,1767245437978,-1746.38493248,0.00016867,2]
[400268204,1767245437988,-102.11219094,0.00016878,2]
[400268205,1767245438000,-450.58499,0.00016878,2]
[400268206,1767245438011,-372.07179283,0.00016878,2]
[400268207,1767245438044,-483.05057557,0.00016878,2]
[400268208,1767245438056,-338.56538314,0.00016878,2]
[400268209,1767245438066,-1746.38493248,0.00016889,2]
[400268210,1767245438076,-188.10743003,0.000169,2]
[400268211,1767245438088,-2638.15312271,0.000169,2]
[400268212,1767245438101,-111.73944726,0.000169,2]
[400268213,1767245438111,-330.07879017,0.000169,2]
[400268214,1767245438172,-4314.88685927,0.000169,2]
[400268215,1767245438184,-1733.86308309,0.000169,2]
[400268413,1767245440249,-1101.29461572,0.000169,2]
[400268425,1767245440379,-438.56,0.000169,2]
[400268427,1767245440391,-301.92197159,0.000169,2]
[400268755,1767245443745,-1938.0774899,0.00016124,2]
[400268757,1767245443757,-1491.625,0.00016124,2]
[400268760,1767245443771,-33.2975101,0.00016124,2]
[400268762,1767245443781,-1738.86914814,0.000169,2]
[400268765,1767245443804,-4001.0,0.000169,2]
[400268771,1767245443857,-3127.9999,0.000169,2]
[400268845,1767245444781,-4867.0,0.000169,2]
[400268850,1767245446340,-3281.0519054,0.000169,2]
[400268855,1767245904878,159.51,7.778e-05,2]
[400268856,1767245905069,159.51,8.89e-05,2]
[400268857,1767245905787,159.51,0.00010001,2]
[400269154,1767246627461,3037.5,0.00030137,120]
[400269161,1767246632041,-159.51,0.00011112,2]
[400269162,1767246632051,-159.51,0.00012223,2]
[400269163,1767246632061,-94.8420027,0.00013335,2]
[400269164,1767246632073,-64.6679973,0.00013335,2]
[400269165,1767246632083,-159.51,0.00014446,2]
[400269166,1767246632093,-181.66986251,0.00014621,2]
[400269167,1767246632103,-871.551,0.00014633,2]
[400269168,1767246632113,-1940.31,0.00014721,2]
[400269169,1767246632123,-160.45190843,0.00014825,2]
[400269170,1767246632133,-300.0,0.00014826,2]
[400269171,1767246632143,-320.46501014,0.00014827,2]
[400269172,1767246632154,-176.73769257,0.00014827,2]
[400269173,1767246632164,-256.21460344,0.00014827,2]
[400269174,1767246632175,-500.0,0.00014827,2]
[400269175,1767246632185,-500.0,0.00014827,2]
[400269176,1767246632196,-500.0,0.00014827,2]
[400269177,1767246632206,-500.0,0.00014827,2]
[400269178,1767246632217,-500.0,0.00014827,2]
[400269179,1767246632227,-500.0,0.00014827,2]
[400269180,1767246632237,-500.0,0.00014827,2]
[400269181,1767246632248,-500.0,0.00014827,2]
[400269182,1767246632258,-500.0,0.00014827,2]
[400269183,1767246632268,-500.0,0.00014827,2]
[400269184,1767246632278,-500.0,0.00014827,2]
[400269185,1767246632288,-500.0,0.00014827,2]
[400269186,1767246632298,-500.0,0.00014827,2]
[400269187,1767246632311,-500.0,0.00014827,2]
[400269189,1767246632321,-500.0,0.00014827,2]
[400269191,1767246632331,-500.0,0.00014827,2]
[400269192,1767246632342,-500.0,0.00014827,2]
[400269193,1767246632352,-551.00522254,0.00014827,2]
[400269194,1767246632362,-500.0,0.00014827,2]
[400269195,1767246632372,-500.0,0.00014827,2]
[400269196,1767246632382,-150.55,0.00014827,2]
[400269198,1767246632391,-81535.89979465,0.00014828,2]
[400269200,1767246632403,-10536.99773945,0.00014828,2]
[400269203,1767246632415,-31920.57414068,0.00014828,2]
[400269205,1767246632427,-20404.11314102,0.00014828,2]
[400269206,1767246632448,-825.78261944,0.00014828,2]
[400269207,1767246632461,-651.02931078,0.00014828,2]
[400269208,1767246632472,-14222.74646825,0.00014828,2]
[400269209,1767246632484,-1618.14212,0.00014828,2]
[400269210,1767246632495,-684.90508682,0.00014828,2]
[400269211,1767246632507,-310.2158656,0.00014828,2]
[400269212,1767246632523,-2952.94751725,0.00014828,2]
[400269216,1767246638219,-466.09093573,0.00014731,2]
[400269407,1767246640158,-438.63,0.00014731,2]
[400269425,1767246640321,-345.98110643,0.00014731,2]
[400269428,1767246640335,-595.36889357,0.00014828,2]
[400269444,1767246640486,-135538.32671919,0.00014828,2]
[400269794,1767246643903,-500.0,0.00014828,2]
[400269899,1767246644873,-372.41914677,0.00014828,2]
[400269910,1767246644964,-4069.35546928,0.00014828,2]
[400270043,1767246646126,-8731.87115927,0.00014828,2]
[400270046,1767246646137,-1962.998755,0.00014828,2]
[400270052,1767246646183,-581.45672485,0.00014828,2]
[400270059,1767246646241,-310.546,0.00014828,2]
[400270979,1767247832176,-189.45669895,0.00013698,2]
[400270980,1767247832188,-934.44,0.00013699,2]
[400270981,1767247832199,-4693.92,0.0001386,2]
[400270982,1767247832210,-3240.0,0.00014045,2]
[400270983,1767247832222,-300.0,0.00014134,2]
[400270984,1767247832233,-300.0,0.00014134,2]
[400270985,1767247832245,-1200.0,0.00014135,2]
[400270986,1767247832256,-2953.45539815,0.00014138,2]
[400270987,1767247832270,-1957.15258626,0.00014138,2]
[400270988,1767247832283,-906.816,0.00014138,2]
[400270989,1767247832297,-1681.84601559,0.00014138,2]
[400270990,1767247832309,-85.49862399,0.00014178,2]
[400270991,1767247832323,-214.99997601,0.00014178,2]
[400270992,1767247832334,-166.66,0.00014278,2]
[400270993,1767247832345,-136.34002399,0.00014573,2]
[400270994,1767247832358,-322.59321388,0.00014573,2]
[400270995,1767247832372,-1028.25764269,0.00014573,2]
[400270996,1767247832432,-260.03248731,0.00014573,2]
[400270997,1767247832445,-392.11894903,0.00014573,2]
[400270998,1767247832459,-1190.51079332,0.00014573,2]
[400270999,1767247832472,-136.90181548,0.00014573,2]
[400271000,1767247832483,-150.0,0.00014576,2]
[400271001,1767247832495,-1002.46230344,0.00014577,2]
[400271002,1767247832505,-500.0,0.00014577,2]
[400271003,1767247832516,-500.0,0.00014577,2]
[400271005,1767247832527,-500.0,0.00014577,2]
[400271007,1767247832537,-500.0,0.00014577,2]
[400271010,1767247832548,-500.0,0.00014577,2]
[400271013,1767247832558,-500.0,0.00014577,2]
[400271015,1767247832569,-500.0,0.00014577,2]
[400271017,1767247832580,-500.0,0.00014577,2]
[400271018,1767247832591,-500.0,0.00014577,2]
[400271019,1767247832601,-188.96862579,0.00014577,2]
[400271020,1767247832614,-311.03137421,0.00014577,2]
[400271021,1767247832624,-500.0,0.00014577,2]
[400271022,1767247832635,-312.33443422,0.00014577,2]
[400271023,1767247832646,-500.0,0.00014577,2]
[400271024,1767247832656,-500.0,0.00014577,2]
[400271025,1767247832666,-500.0,0.00014577,2]
[400271026,1767247832677,-500.0,0.00014577,2]
[400271027,1767247832689,-500.0,0.00014577,2]
[400271028,1767247832699,-500.0,0.00014577,2]
[400271029,1767247832710,-500.0,0.00014577,2]
[400271030,1767247832720,-500.0,0.00014577,2]
[400271031,1767247832730,-150.99,0.00014578,2]
[400271032,1767247832741,-6092.96312665,0.00014578,2]
[400271036,1767247838295,-542.46609112,0.00014578,2]
[400271037,1767247838412,-3364.56078223,0.00014578,2]
[400271038,1767247838422,-999.99,0.00014578,2]
[400271039,1767247838432,-166.66,0.00014578,2]
[400271040,1767247838443,-565.0,0.00014595,2]
[400271041,1767247838454,-3467.66966302,0.00014597,2]
[400271042,1767247838464,-333.36674876,0.00014619,2]
[400271043,1767247838474,-151.0,0.00014624,2]
[400271044,1767247838484,-265.11508942,0.00014626,2]
[400271045,1767247838494,-500.0,0.00014626,2]
[400271046,1767247838504,-219.99989068,0.00014626,2]
[400271047,1767247838514,-505.11467938,0.00014626,2]
[400271048,1767247838524,-163.02851321,0.00014626,2]
[400271049,1767247838533,-192433.68429227,0.00014627,2]
[400271050,1767247838545,-32633.9999999,0.00014627,2]
[400271051,1767247838557,-993.90919534,0.00014627,2]
[400271052,1767247838568,-7841.00097186,0.00014627,2]
[400271054,1767247838581,-3671.06059036,0.00014627,2]
[400271056,1767247838592,-446.06152861,0.00014627,2]
[400271225,1767247840311,-2669.61576746,0.00014627,2]
[400271228,1767247840323,-258.39013124,0.00014627,2]
[400271240,1767247840426,-877.39,0.00014627,2]
[400271247,1767247840483,-725.91164319,0.00014627,2]
[400271261,1767247840600,-757448.97587977,0.00014627,2]
[400271263,1767247840610,-333.36674875,0.00014673,2]
[400271265,1767247840620,-207.4,0.00014719,2]
[400271267,1767247840629,-151.0,0.00014725,2]
[400271269,1767247840638,-1195.321,0.00014727,2]
[400271271,1767247840647,-281.828,0.00014727,2]
[400271273,1767247840657,-1027.0928,0.00014727,2]
[400271275,1767247840666,-1000.0,0.00014728,2]
[400271277,1767247840676,-33520.8529,0.00014728,2]
[400271279,1767247840685,-165.9438097,0.00014728,2]
[400271281,1767247840694,-511.39848672,0.00014813,2]
[400271283,1767247840705,-403.82765994,0.00014817,2]
[400271285,1767247840716,-151.0,0.00014824,2]
[400271287,1767247840727,-500.0,0.00014826,2]
[400271289,1767247840736,-508.30001855,0.00014826,2]
[400271291,1767247840745,-680.66565865,0.00014826,2]
[400271293,1767247840754,-3057.3549635,0.00014827,2]
[400271295,1767247840764,-8797.3483492,0.00014827,2]
[400271297,1767247840773,-285440.3599887,0.00014827,2]
[400271299,1767247840784,-2814.9135886,0.00014827,2]
[400271301,1767247840793,-16688.0478864,0.00014827,2]
[400271304,1767247840806,-151.0,0.00014827,2]
[400271306,1767247840816,-151.0,0.00014827,2]
[400271308,1767247840825,-151.0,0.00014827,2]
[400271309,1767247840835,-151.0,0.00014827,2]
[400271312,1767247840844,-151.0,0.00014827,2]
[400271314,1767247840854,-500.0,0.00014827,2]
[400271316,1767247840863,-500.0,0.00014827,2]
[400271318,1767247840872,-500.0,0.00014827,2]
[400271320,1767247840881,-2773.1627671,0.00014827,2]
[400271322,1767247840890,-151.0,0.00014827,2]
[400271324,1767247840899,-151.0,0.00014827,2]
[400271326,1767247840908,-151.0,0.00014827,2]
[400271328,1767247840918,-151.0,0.00014827,2]
[400271330,1767247840927,-151.0,0.00014828,2]
[400271332,1767247840936,-151.0,0.00014828,2]
[400271334,1767247840945,-153.815494,0.00014828,2]
[400271336,1767247840955,-151.0,0.00014828,2]
[400271338,1767247840964,-151.0,0.00014828,2]
[400271341,1767247840973,-151.0,0.00014828,2]
[400271344,1767247840982,-151.0,0.00014828,2]
[400271346,1767247840994,-157.248404,0.00014828,2]
[400271348,1767247841003,-152.24094,0.00014828,2]
[400271350,1767247841012,-151.0,0.00014828,2]
[400271352,1767247841022,-151.0,0.00014828,2]
[400271354,1767247841032,-3466.75492563,0.00014832,2]
[400271356,1767247841041,-565.0,0.00014869,2]
[400271359,1767247841051,-166.66,0.00014879,2]
[400271361,1767247841061,-151.49,0.00014885,2]
[400271363,1767247841070,-300.56,0.00014885,2]
[400271365,1767247841079,-1118.01,0.00014885,2]
[400271367,1767247841088,-200.0,0.00014893,2]
[400271369,1767247841097,-507.71964919,0.00014931,2]
[400271371,1767247841107,-301.13819,0.00015068,2]
[400271373,1767247841116,-301.13819,0.00015068,2]
[400271375,1767247841125,-835.48772151,0.00015068,2]
[400271377,1767247841135,-3466.75492563,0.0001509,2]
[400271379,1767247841144,-200.0,0.00015106,2]
[400271381,1767247841153,-223.53,0.0001514,2]
[400271383,1767247841163,-565.0,0.00015143,2]
[400271385,1767247841172,-183.91,0.00015148,2]
[400271387,1767247841181,-166.66,0.00015179,2]
[400271389,1767247841190,-151.0,0.0001521,2]
[400271391,1767247841199,-151.0,0.0001521,2]
[400271393,1767247841209,-151.0,0.0001521,2]
[400271395,1767247841218,-151.0,0.0001521,2]
[400271397,1767247841227,-151.0,0.0001521,2]
[400271399,1767247841236,-151.0,0.0001521,2]
[400271401,1767247841245,-151.0,0.0001521,2]
[400271403,1767247841255,-160.31,0.00015284,2]
[400271405,1767247841264,-150.0,0.00015288,2]
[400271407,1767247841273,-150.0,0.00015288,2]
[400271409,1767247841283,-150.0,0.00015288,2]
[400271411,1767247841292,-150.0,0.00015288,2]
[400271413,1767247841301,-150.0,0.00015288,2]
[400271415,1767247841311,-151.50433354,0.00015288,2]
[400271417,1767247841321,-150.0,0.00015288,2]
[400271419,1767247841330,-150.0,0.00015288,2]
[400271422,1767247841340,-1000.0,0.00015301,2]
[400271423,1767247841349,-3466.75492563,0.00015349,2]
[400271426,1767247841358,-565.0,0.00015417,2]
[400271429,1767247841380,-503.0,0.00015425,2]
[400271431,1767247841391,-151.0,0.00015455,2]
[400271433,1767247841401,-301.13819,0.00015455,2]
[400271435,1767247841411,-301.13819,0.00015455,2]
[400271437,1767247841421,-162.603233,0.00015455,2]
[400271440,1767247841432,-151.0,0.00015455,2]
[400271442,1767247841441,-166.66,0.0001548,2]
[400271444,1767247841452,-420.0,0.00015482,2]
[400271446,1767247841464,-323.0,0.00015484,2]
[400271448,1767247841474,-159.51,0.00015557,2]
[400271450,1767247841483,-151.0,0.00015598,2]
[400271452,1767247841493,-151.0,0.00015598,2]
[400271454,1767247841502,-151.0,0.00015598,2]
[400271456,1767247841511,-151.0,0.00015598,2]
[400271458,1767247841521,-151.0,0.00015603,2]
[400271460,1767247841532,-151.0,0.00015603,2]
[400271461,1767247841541,-3466.75492563,0.00015607,2]
[400271462,1767247841551,-151.0,0.00015608,2]
[400271463,1767247841560,-151.0,0.00015608,2]
[400271464,1767247841571,-565.0,0.00015691,2]
[400271465,1767247841581,-255.0,0.00015699,2]
[400271466,1767247841590,-166.66,0.00015781,2]
[400271467,1767247841600,-3466.75492563,0.00015866,2]
[400271468,1767247841610,-151.0,0.00015931,2]
[400271469,1767247841619,-151.00001,0.00015934,2]
[400271470,1767247841629,-175.118336,0.00015934,2]
[400271472,1767247841639,-151.0,0.00015934,2]
[400271474,1767247841649,-151.0,0.00015934,2]
[400271476,1767247841659,-151.0,0.00015934,2]
[400271478,1767247841669,-151.0,0.00015934,2]
[400271481,1767247841678,-183.437721,0.00015934,2]
[400271483,1767247841688,-565.0,0.00015965,2]
[400271485,1767247841697,-163.70604612,0.00015997,2]
[400271487,1767247841706,-500.0,0.00016,2]
[400271489,1767247841716,-500.0,0.00016,2]
[400271491,1767247841730,-500.0,0.00016,2]
[400271493,1767247841740,-500.0,0.00016,2]
[400271496,1767247841750,-500.0,0.00016,2]
[400271498,1767247841760,-500.0,0.00016,2]
[400271500,1767247841770,-500.0,0.00016,2]
[400271502,1767247841779,-500.0,0.00016,2]
[400271504,1767247841789,-500.0,0.00016,2]
[400271506,1767247841799,-500.0,0.00016,2]
[400271508,1767247841809,-500.0,0.00016,2]
[400271510,1767247841818,-500.0,0.00016,2]
[400271512,1767247841828,-500.0,0.00016,2]
[400271514,1767247841837,-500.0,0.00016,2]
[400271516,1767247841847,-500.0,0.00016,2]
[400271518,1767247841857,-500.0,0.00016,2]
[400271520,1767247841867,-500.0,0.00016,2]
[400271523,1767247841877,-500.0,0.00016,2]
[400271525,1767247841887,-500.0,0.00016,2]
[400271527,1767247841897,-500.0,0.00016,2]
[400271529,1767247841906,-500.0,0.00016,2]
[400271531,1767247841916,-500.0,0.00016,2]
[400271533,1767247841926,-500.0,0.00016,2]
[400271535,1767247841936,-500.0,0.00016,2]
[400271537,1767247841945,-500.0,0.00016,2]
[400271539,1767247841955,-500.0,0.00016,2]
[400271541,1767247841964,-500.0,0.00016,2]
[400271543,1767247841974,-500.0,0.00016,2]
[400271545,1767247841983,-500.0,0.00016,2]
[400271547,1767247841993,-500.0,0.00016,2]
[400271549,1767247842003,-500.0,0.00016,2]
[400271552,1767247842012,-500.0,0.00016,2]
[400271554,1767247842022,-500.0,0.00016,2]
[400271556,1767247842032,-500.0,0.00016,2]
[400271558,1767247842041,-500.0,0.00016,2]
[400271560,1767247842052,-500.0,0.00016,2]
[400271562,1767247842062,-500.0,0.00016,2]
[400271564,1767247842071,-500.0,0.00016,2]
[400271567,1767247842086,-500.0,0.00016,2]
[400271569,1767247842095,-500.0,0.00016,2]
[400271571,1767247842105,-500.0,0.00016,2]
[400271573,1767247842115,-500.0,0.00016,2]
[400271575,1767247842125,-500.0,0.00016,2]
[400271577,1767247842134,-500.0,0.00016,2]
[400271579,1767247842144,-500.0,0.00016,2]
[400271581,1767247842154,-500.0,0.00016,2]
[400271583,1767247842164,-500.0,0.00016,2]
[400271585,1767247842173,-500.0,0.00016,2]
[400271587,1767247842183,-500.0,0.00016,2]
[400271589,1767247842193,-500.0,0.00016,2]